bitfinex-derivatives/quotes_BTCF0:USTF0_20250130
["timestamp","ask_amount","ask_price","bid_price","bid_amount"]
[1738265789867,0.2569,105490.0,105480.0,0.9637551]
[1738265790067,0.34203861,105490.0,105480.0,2.5006551]
[1738265791270,0.34203861,105490.0,105480.0,2.5379551]
[1738265792171,0.34603861,105490.0,105480.0,2.5379551]
[1738265793772,0.31123861,105490.0,105480.0,2.5379551]
[1738265793969,0.31123861,105490.0,105480.0,2.5735551]
[1738265795070,8.99332038,105500.0,105480.0,2.3839561]
[1738265795274,8.87932222,105500.0,105490.0,0.29345905]
[1738265795576,8.87932222,105500.0,105490.0,0.49345905]
[1738265796076,8.87932222,105500.0,105490.0,0.85425905]
[1738265796277,8.88232222,105500.0,105490.0,0.85425905]
[1738265797173,8.88132222,105500.0,105490.0,0.87981905]
[1738265797373,8.88332222,105500.0,105490.0,0.87981905]
[1738265798086,8.88132222,105500.0,105490.0,0.87981905]
[1738265800183,8.8799,105500.0,105490.0,0.750381]
[1738265800382,9.069463,105500.0,105490.0,0.775941]
[1738265800682,9.069463,105500.0,105490.0,0.87981905]
[1738265801184,9.102,105500.0,105490.0,0.87981905]
[1738265801585,9.102,105500.0,105490.0,0.88910922]
[1738265802477,9.102,105500.0,105490.0,0.52830922]
[1738265803379,9.291563,105500.0,105490.0,0.52830922]
[1738265804084,9.102,105500.0,105490.0,0.52830922]
[1738265804980,9.102,105500.0,105490.0,0.50274922]
[1738265805185,9.102,105500.0,105490.0,0.52830922]
[1738265808083,9.102,105500.0,105490.0,0.32830922]
[1738265808290,9.102,105500.0,105490.0,0.68910922]
[1738265808585,9.102,105500.0,105490.0,0.72910922]
[1738265809391,9.102,105500.0,105490.0,2.22910922]
[1738265810892,9.102,105500.0,105490.0,0.72910922]
[1738265811589,9.102,105500.0,105490.0,0.7289413]
[1738265812892,8.8789,105500.0,105490.0,0.7289413]
[1738265815794,8.8789,105500.0,105490.0,0.3681413]
[1738265816386,8.8789,105500.0,105490.0,0.7289413]
[1738265826299,8.8789,105500.0,105490.0,0.6889413]
[1738265827406,8.8789,105500.0,105490.0,0.3281413]
[1738265827699,8.8789,105500.0,105490.0,0.5181413]
[1738265828200,8.8789,105500.0,105490.0,0.41426325]
[1738265828405,8.8789,105500.0,105490.0,0.5181413]
[1738265829603,8.8789,105500.0,105490.0,0.8789413]
[1738265830902,8.99241815,105500.0,105490.0,0.8789413]
[1738265836110,8.99241815,105500.0,105490.0,0.6889413]
[1738265838613,8.99241815,105500.0,105490.0,0.65299407]
[1738265841918,8.99241815,105500.0,105490.0,0.70299407]
[1738265842415,8.99241815,105500.0,105490.0,0.65299407]
[1738265843516,8.99241815,105500.0,105490.0,0.77299407]
[1738265843714,8.99241815,105500.0,105490.0,0.84092489]
[1738265845618,8.99241815,105500.0,105490.0,2.34092489]
[1738265849716,8.8789,105500.0,105490.0,2.34092489]
[1738265849915,8.8789,105500.0,105490.0,0.84092489]
[1738265850121,9.13639382,105500.0,105490.0,0.37009017]
[1738265850420,9.78423082,105500.0,105470.0,1.01387882]
[1738265850616,0.3608,105490.0,105480.0,0.25752982]
[1738265851009,9.35606001,105500.0,105490.0,0.189581]
[1738265851213,9.3555,105500.0,105490.0,0.32544264]
[1738265851408,9.3555,105500.0,105490.0,0.28307182]
[1738265851920,9.3545,105500.0,105490.0,0.28307182]
[1738265852419,9.3545,105500.0,105490.0,0.09349082]
[1738265852621,0.189581,105490.0,105480.0,0.189591]
[1738265852820,0.65389737,105490.0,105470.0,0.59452501]
[1738265853118,0.1145,105480.0,105470.0,0.69804138]
[1738265853321,0.1145,105480.0,105470.0,0.32820896]
[1738265853726,0.1145,105480.0,105470.0,0.22469259]
[1738265853919,0.1145,105480.0,105470.0,0.32820896]
[1738265854219,0.1145,105480.0,105470.0,0.30264896]
[1738265854425,0.1145,105480.0,105470.0,0.32820896]
[1738265855321,0.1145,105480.0,105470.0,0.22469259]
[1738265855822,0.1145,105480.0,105470.0,0.22869259]
[1738265856322,0.40761537,105480.0,105470.0,0.01352159]
[1738265856518,0.76841537,105480.0,105470.0,0.01352159]
[1738265856716,0.76841537,105480.0,105460.0,0.02556]
[1738265856717,0.189625,105470.0,105460.0,0.02556]
[1738265856921,0.550425,105470.0,105460.0,0.15556]
[1738265858621,0.550425,105470.0,105460.0,0.15756]
[1738265858822,0.550425,105470.0,105460.0,0.132]
[1738265859227,0.65394137,105470.0,105460.0,0.132]
[1738265859427,0.550425,105470.0,105460.0,0.132]
[1738265859629,0.550425,105470.0,105460.0,0.137]
[1738265862126,0.65394137,105470.0,105460.0,0.137]
[1738265862423,0.550425,105470.0,105460.0,0.137]
[1738265862929,0.65394137,105470.0,105460.0,0.137]
[1738265864928,0.550425,105470.0,105460.0,0.326635]
[1738265867529,0.65394137,105470.0,105460.0,0.326635]
[1738265868031,0.65394137,105470.0,105460.0,0.137]
[1738265868216,0.65394137,105470.0,105460.0,0.326635]
[1738265871727,0.65394137,105470.0,105460.0,0.137]
[1738265872830,0.65394137,105470.0,105460.0,0.007]
[1738265874729,0.61841813,105470.0,105460.0,0.007]
[1738265876138,0.189635,105460.0,105450.0,0.19904249]
[1738265876338,0.79622126,105460.0,105450.0,0.19904249]
[1738265876540,0.72822813,105460.0,105450.0,0.19904249]
[1738265877240,0.79622126,105460.0,105450.0,0.19904249]
[1738265877536,0.79622126,105460.0,105450.0,0.00938949]
[1738265877737,0.79622126,105460.0,105450.0,0.00014258]
[1738265878241,0.79722126,105460.0,105450.0,0.01114258]
[1738265880435,0.72922813,105460.0,105450.0,0.01114258]
[1738265880837,0.79722126,105460.0,105450.0,0.01114258]
[1738265883537,0.60758626,105460.0,105440.0,0.19912316]
[1738265883746,0.61844613,105450.0,105440.0,0.19912316]
[1738265884339,0.61844613,105450.0,105440.0,0.00946116]
[1738265884539,0.42879313,105450.0,105440.0,0.004]
[1738265884737,0.68643926,105450.0,105440.0,0.004]
[1738265884936,0.61844613,105450.0,105440.0,0.004]
[1738265885131,0.68643926,105450.0,105440.0,0.004]
[1738265885331,0.189671,105440.0,105430.0,0.00014258]
[1738265885536,0.79785726,105440.0,105430.0,0.00014258]
[1738265886643,0.79212597,105440.0,105430.0,0.00714258]
[1738265887432,0.79212597,105440.0,105430.0,0.01014258]
[1738265887838,0.79212597,105440.0,105410.0,0.79233854]
[1738265887839,0.90245497,105440.0,105410.0,0.79233854]
[1738265888044,0.65420197,105420.0,105410.0,0.80139801]
[1738265888440,0.72660197,105420.0,105410.0,0.80139801]
[1738265888642,0.76570197,105420.0,105410.0,0.80139801]
[1738265888836,1.12650197,105420.0,105410.0,0.80139801]
[1738265889041,1.23019694,105420.0,105410.0,0.80439801]
[1738265889247,1.23019694,105420.0,105410.0,0.61968501]
[1738265889543,1.23119694,105420.0,105410.0,0.20678447]
[1738265889746,1.23019694,105420.0,105410.0,0.192725]
[1738265889946,1.23119694,105420.0,105410.0,0.197725]
[1738265890448,1.23119694,105420.0,105410.0,0.005]
[1738265890646,1.23119694,105420.0,105410.0,0.008]
[1738265890843,1.12750197,105420.0,105410.0,0.008]
[1738265891639,1.23119694,105420.0,105410.0,0.008]
[1738265892947,1.12750197,105420.0,105410.0,0.008]
[1738265893148,1.25675694,105420.0,105410.0,0.008]
[1738265893341,1.15306197,105420.0,105410.0,0.008]
[1738265893943,1.16247528,105420.0,105410.0,0.008]
[1738265899548,1.26617025,105420.0,105410.0,0.008]
[1738265899750,1.16247528,105420.0,105410.0,0.008]
[1738265901155,1.26617025,105420.0,105410.0,0.008]
[1738265901543,0.189725,105410.0,105400.0,0.18987358]
[1738265901747,0.65421997,105410.0,105400.0,0.18987358]
[1738265902850,0.65421997,105410.0,105400.0,0.00014258]
[1738265903043,0.65521997,105410.0,105400.0,0.00414258]
[1738265908349,0.189761,105390.0,105380.0,0.19120037]
[1738265908549,0.75795094,105390.0,105380.0,0.19120037]
[1738265908856,0.56818994,105390.0,105360.0,0.0381]
[1738265909161,0.189815,105360.0,105350.0,0.88792039]
[1738265909354,0.29350997,105360.0,105350.0,0.88792039]
[1738265910245,0.29350997,105360.0,105350.0,1.24872039]
[1738265910454,0.29350997,105360.0,105350.0,0.88792039]
[1738265910855,0.29450997,105360.0,105350.0,0.89737056]
[1738265911159,0.65530997,105360.0,105350.0,0.27388117]
[1738265911363,0.65630997,105360.0,105350.0,0.27388117]
[1738265911961,0.65630997,105360.0,105350.0,0.264431]
[1738265912358,0.65630997,105360.0,105350.0,0.189831]
[1738265913063,0.65630997,105360.0,105340.0,0.87713697]
[1738265913260,0.189833,105350.0,105340.0,0.85157697]
[1738265913472,0.29352797,105350.0,105340.0,0.85157697]
[1738265913967,0.51562797,105350.0,105340.0,0.66173197]
[1738265914361,0.87642797,105350.0,105340.0,0.66173197]
[1738265914551,0.87742797,105350.0,105340.0,0.66173197]
[1738265914753,0.2231,105350.0,105340.0,0.95527794]
[1738265915058,0.17635747,105350.0,105340.0,1.52163794]
[1738265915456,0.17635747,105350.0,105340.0,3.02163794]
[1738265915657,0.17735747,105350.0,105340.0,2.39814855]
[1738265916064,0.17735747,105350.0,105340.0,2.03734855]
[1738265916363,0.17635747,105350.0,105340.0,2.03734855]
[1738265916954,0.001,105350.0,105340.0,2.03734855]
[1738265917149,0.001,105350.0,105340.0,0.51178855]
[1738265917354,0.001,105350.0,105340.0,0.33178855]
[1738265917556,0.001,105350.0,105340.0,0.35734855]
[1738265918856,0.3618,105350.0,105340.0,0.25365358]
[1738265919055,0.001,105350.0,105340.0,0.22809358]
[1738265919357,0.001,105350.0,105340.0,0.25365358]
[1738265919560,0.001,105350.0,105340.0,0.55734855]
[1738265920362,0.3618,105350.0,105340.0,0.55734855]
[1738265926766,0.001,105350.0,105340.0,0.55734855]
[1738265929070,0.3618,105350.0,105340.0,0.55734855]
[1738265939972,0.3618,105350.0,105340.0,0.53178855]
[1738265940279,0.44651966,105350.0,105340.0,0.7836542]
[1738265943177,0.44651966,105350.0,105340.0,0.84102791]
[1738265946278,0.74004763,105350.0,105340.0,0.48382194]
[1738265946479,0.81854763,105350.0,105340.0,0.28382194]
[1738265947773,1.17934763,105350.0,105340.0,0.28382194]
[1738265950987,1.3493993,105350.0,105340.0,0.00014258]
[1738265953191,1.3493993,105350.0,105340.0,0.18999358]
[1738265954284,1.3523993,105350.0,105340.0,0.18999358]
[1738265954492,1.07738826,105350.0,105340.0,0.29368855]
[1738265954986,1.03688826,105350.0,105340.0,0.29368855]
[1738265956085,1.03288826,105350.0,105340.0,0.29368855]
[1738265956687,1.03288826,105350.0,105340.0,0.31924855]
[1738265957381,1.03288826,105350.0,105340.0,0.33924855]
[1738265957382,0.80656744,105350.0,105340.0,0.33924855]
[1738265959392,0.80656744,105350.0,105340.0,0.34873894]
[1738265960994,0.99640044,105350.0,105340.0,0.32873894]
[1738265961288,0.80656744,105350.0,105340.0,0.32873894]
[1738265962295,0.7216,105350.0,105340.0,0.32873894]
[1738265964596,0.3608,105350.0,105340.0,0.39873894]
[1738265966198,0.3608,105350.0,105340.0,0.37317894]
[1738265966491,0.3608,105350.0,105340.0,0.39873894]
[1738265968896,0.3608,105350.0,105340.0,0.9100492]
[1738265971591,0.08496744,105360.0,105350.0,0.189833]
[1738265971793,0.08496744,105360.0,105350.0,0.58782797]
[1738265973095,0.08896744,105360.0,105350.0,0.58782797]
[1738265974091,0.08896744,105360.0,105350.0,0.94862797]
[1738265974684,0.004,105360.0,105350.0,0.94862797]
[1738265975694,0.004,105360.0,105350.0,1.05232294]
[1738265975888,0.004,105360.0,105350.0,0.94862797]
[1738265976083,0.19839994,105370.0,105360.0,0.189815]
[1738265976287,0.19839994,105370.0,105360.0,0.43906997]
[1738265977292,0.20039994,105370.0,105360.0,0.43906997]
[1738265978692,0.20639994,105370.0,105360.0,0.43906997]
[1738265979403,0.00814258,105370.0,105360.0,0.90356494]
[1738265979901,0.00814258,105370.0,105360.0,0.79986997]
[1738265982994,0.00814258,105370.0,105360.0,1.03671476]
[1738265984305,0.04504258,105370.0,105360.0,0.93301979]
[1738265984505,0.08174258,105370.0,105360.0,0.93301979]
[1738265985199,0.08174258,105370.0,105360.0,0.54665979]
[1738265985401,0.73603455,105370.0,105360.0,0.23684479]
[1738265985796,0.63233958,105370.0,105360.0,0.23684479]
[1738265985991,0.73603455,105370.0,105360.0,0.23684479]
[1738265987107,0.73603455,105370.0,105360.0,0.2276309]
[1738265987301,0.63233958,105370.0,105360.0,0.2276309]
[1738265988598,0.63233958,105370.0,105360.0,0.4174459]
[1738265989012,0.73603455,105370.0,105360.0,0.4174459]
[1738265991810,0.84932447,105370.0,105360.0,0.189815]
[1738265992209,0.7456295,105370.0,105360.0,0.189815]
[1738265993106,0.5558325,105370.0,105360.0,0.189815]
[1738265993307,0.5558325,105370.0,105360.0,0.39720494]
[1738265993502,0.4822325,105370.0,105360.0,0.41720494]
[1738265993707,0.1214325,105370.0,105360.0,0.35280997]
[1738265993908,0.4822325,105370.0,105360.0,0.35280997]
[1738265994412,0.4822325,105370.0,105360.0,1.85280997]
[1738265994608,0.4822325,105370.0,105360.0,0.35280997]
[1738265995716,0.4822325,105370.0,105360.0,0.249115]
[1738265996019,0.1214325,105370.0,105360.0,0.249115]
[1738265996415,0.09328079,105370.0,105360.0,0.249115]
[1738265997016,0.09328079,105370.0,105360.0,0.35280997]
[1738265997219,0.09328079,105370.0,105360.0,0.45650494]
[1738265997426,0.09328079,105370.0,105360.0,0.49820494]
[1738265997710,0.09328079,105370.0,105360.0,0.85900494]
[1738266000626,0.06429828,105370.0,105360.0,0.85900494]
[1738266000823,0.05270071,105380.0,105360.0,1.29267933]
[1738266001124,0.05270071,105380.0,105370.0,0.71915197]
[1738266001323,0.05270071,105380.0,105370.0,0.91915197]
[1738266002628,0.05570071,105380.0,105370.0,0.91915197]
[1738266003327,0.2550678,105390.0,105380.0,0.189779]
[1738266003328,0.18702283,105390.0,105380.0,0.189779]
[1738266003514,0.16436861,105390.0,105380.0,0.93517397]
[1738266004528,0.16436861,105390.0,105380.0,0.93917397]
[1738266004727,0.16436861,105390.0,105380.0,0.94117397]
[1738266004924,0.00014258,105390.0,105380.0,0.94117397]
[1738266009236,0.00014258,105390.0,105380.0,1.4517126]
[1738266010536,0.00014258,105390.0,105380.0,1.46094278]
[1738266012028,0.00014258,105390.0,105380.0,1.48650278]
[1738266012636,0.00014258,105390.0,105380.0,0.97596415]
[1738266022036,0.00014258,105390.0,105380.0,0.93626415]
[1738266027047,0.00014258,105390.0,105380.0,0.91070415]
[1738266027246,0.00142392,105400.0,105390.0,0.189761]
[1738266027431,0.00142392,105400.0,105390.0,0.99895094]
[1738266027836,0.00142392,105400.0,105390.0,2.49895094]
[1738266028244,0.00142392,105400.0,105390.0,0.99895094]
[1738266028745,0.00142392,105400.0,105390.0,2.49995094]
[1738266030545,0.00142392,105400.0,105390.0,0.99995094]
[1738266032348,0.1134325,105410.0,105400.0,0.189743]
[1738266032545,0.1134325,105410.0,105400.0,0.96109797]
[1738266033544,0.1144325,105410.0,105400.0,0.96109797]
[1738266033851,0.1164325,105410.0,105400.0,0.96109797]
[1738266034550,0.60895296,105430.0,105420.0,0.189707]
[1738266034852,0.28855296,105430.0,105420.0,0.33896197]
[1738266035751,0.29155296,105430.0,105420.0,0.33896197]
[1738266036851,0.29855296,105430.0,105420.0,0.33996197]
[1738266037745,0.29855296,105430.0,105420.0,0.34935588]
[1738266037946,0.1289,105430.0,105420.0,0.34935588]
[1738266038246,0.318589,105430.0,105420.0,0.20010091]
[1738266038450,0.318589,105430.0,105420.0,0.01039391]
[1738266041258,0.318589,105430.0,105420.0,0.001]
[1738266041454,0.318589,105430.0,105420.0,0.190707]
[1738266042557,0.32791104,105430.0,105420.0,0.001]
[1738266042860,0.68871104,105430.0,105420.0,0.001]
[1738266043661,0.32791104,105430.0,105420.0,0.001]
[1738266044053,0.32791104,105430.0,105420.0,0.190707]
[1738266044253,0.43160601,105430.0,105420.0,0.190707]
[1738266044458,0.79240601,105430.0,105420.0,0.190707]
[1738266044857,0.68871104,105430.0,105420.0,0.190707]
[1738266048953,0.679389,105430.0,105420.0,0.190707]
[1738266049260,0.679389,105430.0,105420.0,0.29440197]
[1738266051551,0.679389,105430.0,105420.0,0.190707]
[1738266051752,0.679389,105430.0,105420.0,0.29440197]
[1738266052046,0.318589,105430.0,105420.0,0.29440197]
[1738266053855,0.0504,105430.0,105420.0,0.31440197]
[1738266054053,0.0504,105430.0,105420.0,0.29440197]
[1738266055463,0.240089,105430.0,105420.0,0.190707]
[1738266057360,0.0504,105430.0,105420.0,0.65520197]
[1738266057559,0.01,105430.0,105420.0,0.80889694]
[1738266057754,0.01,105430.0,105420.0,0.84879694]
[1738266059364,0.003,105430.0,105420.0,0.84779694]
[1738266059558,0.003,105430.0,105420.0,0.85179694]
[1738266061571,0.1421152,105440.0,105430.0,0.189689]
[1738266061762,0.1421152,105440.0,105430.0,0.56020397]
[1738266062763,0.00014258,105440.0,105430.0,0.56020397]
[1738266064272,0.00014258,105440.0,105430.0,0.92200397]
[1738266066875,0.00014258,105440.0,105430.0,0.56120397]
[1738266067076,0.00014258,105440.0,105430.0,0.36120397]
[1738266067765,0.00014258,105440.0,105430.0,0.77200397]
[1738266067964,0.00014258,105440.0,105430.0,0.82104889]
[1738266070067,0.00014258,105440.0,105430.0,0.79552889]
[1738266070269,0.00014258,105440.0,105430.0,0.63665392]
[1738266070477,0.00014258,105440.0,105430.0,0.74034889]
[1738266070675,0.00014258,105440.0,105430.0,0.77984889]
[1738266074791,0.00014258,105440.0,105430.0,0.81213902]
[1738266075480,0.00014258,105440.0,105430.0,0.74414647]
[1738266076080,0.00014258,105440.0,105430.0,0.81213902]
[1738266077591,0.4405,105460.0,105450.0,0.189653]
[1738266077885,0.269335,105460.0,105450.0,0.28316555]
[1738266078784,0.276335,105460.0,105450.0,0.28316555]
[1738266078985,0.0867,105460.0,105450.0,0.28316555]
[1738266079191,0.0867,105460.0,105450.0,0.30316555]
[1738266079385,0.0867,105460.0,105450.0,0.28316555]
[1738266081589,0.276335,105460.0,105450.0,0.28316555]
[1738266083091,0.276335,105460.0,105450.0,0.29281433]
[1738266087295,0.0867,105460.0,105450.0,0.29281433]
[1738266089395,0.276335,105460.0,105450.0,0.29281433]
[1738266096596,0.38988254,105460.0,105450.0,0.29281433]
[1738266096789,0.20024754,105460.0,105450.0,0.29281433]
[1738266097192,0.42974519,105460.0,105440.0,0.36094258]
[1738266097499,0.189671,105440.0,105430.0,0.33981003]
[1738266097799,0.3256561,105440.0,105430.0,0.33981003]
[1738266097999,0.4015561,105440.0,105430.0,0.33981003]
[1738266098394,0.4270761,105440.0,105430.0,0.33981003]
[1738266098696,0.4270761,105440.0,105410.0,0.39539242]
[1738266098697,0.56593961,105440.0,105410.0,0.39539242]
[1738266098891,0.29342661,105420.0,105410.0,0.39539242]
[1738266099496,0.189707,105420.0,105410.0,0.39539242]
[1738266099892,0.189707,105420.0,105410.0,0.40239242]
[1738266100206,0.190707,105420.0,105410.0,0.40239242]
[1738266100402,0.192707,105420.0,105400.0,0.13872495]
[1738266100696,0.550525,105410.0,105400.0,0.32846195]
[1738266100898,0.550525,105410.0,105400.0,0.30294195]
[1738266101895,0.550525,105410.0,105400.0,0.30394195]
[1738266102095,0.550525,105410.0,105400.0,0.01048534]
[1738266103404,0.550525,105410.0,105400.0,0.01148534]
[1738266103901,0.65424461,105410.0,105400.0,0.01148534]
[1738266106597,0.65424461,105410.0,105400.0,0.00214258]
[1738266108093,0.550525,105410.0,105400.0,0.00214258]
[1738266108696,0.550525,105410.0,105400.0,0.33630519]
[1738266109098,0.550525,105410.0,105400.0,0.23258558]
[1738266112220,0.550525,105410.0,105400.0,0.04284258]
[1738266112507,0.65424461,105410.0,105400.0,0.04284258]
[1738266119909,0.65424461,105410.0,105400.0,0.08134258]
[1738266120111,0.550525,105410.0,105400.0,0.12214258]
[1738266120718,0.61858403,105410.0,105400.0,0.12214258]
[1738266121407,0.68664306,105410.0,105400.0,0.00214258]
[1738266121617,0.68664306,105410.0,105400.0,1e-08]
[1738266121618,0.72684306,105410.0,105400.0,1e-08]
[1738266121815,0.65878403,105410.0,105400.0,1e-08]
[1738266122010,0.72684306,105410.0,105400.0,1e-08]
[1738266122316,0.65878403,105410.0,105400.0,1e-08]
[1738266122711,0.72684306,105410.0,105400.0,1e-08]
[1738266124712,0.69447621,105410.0,105400.0,1e-08]
[1738266127421,1.09822742,105410.0,105400.0,1e-08]
[1738266127825,0.99447621,105410.0,105400.0,1e-08]
[1738266128025,0.189743,105400.0,105390.0,0.00014258]
[1738266128225,0.86516542,105400.0,105390.0,0.00014258]
[1738266130118,0.86616542,105400.0,105390.0,0.00514258]
[1738266130319,0.86616542,105400.0,105390.0,0.00714258]
[1738266130616,0.76241421,105400.0,105390.0,0.00714258]
[1738266130816,0.86616542,105400.0,105390.0,0.00714258]
[1738266133122,0.86616542,105400.0,105390.0,0.00698226]
[1738266134220,0.86616542,105400.0,105390.0,2.6e-07]
[1738266134528,0.189797,105370.0,105360.0,0.3386]
[1738266134727,1.01514821,105370.0,105360.0,0.3386]
[1738266136620,1.01614821,105370.0,105360.0,0.3386]
[1738266136815,1.01614821,105370.0,105360.0,0.528415]
[1738266137328,0.912397,105370.0,105360.0,0.528415]
[1738266137519,1.01614821,105370.0,105360.0,0.528415]
[1738266138922,1.21396474,105370.0,105360.0,0.528415]
[1738266139932,1.21396474,105370.0,105360.0,0.3386]
[1738266140332,1.21396474,105370.0,105360.0,0.3]
[1738266147237,1.21396474,105370.0,105360.0,0.489815]
[1738266148126,1.11021353,105370.0,105360.0,0.489815]
[1738266148730,1.21396474,105370.0,105360.0,0.489815]
[1738266150540,1.12918623,105370.0,105360.0,0.489815]
[1738266152938,1.02543502,105370.0,105360.0,0.489815]
[1738266155638,1.02543502,105370.0,105360.0,0.59356621]
[1738266155838,1.02543502,105370.0,105360.0,0.489815]
[1738266156033,1.02543502,105370.0,105360.0,0.59356621]
[1738266156034,0.47483802,105370.0,105360.0,0.59356621]
[1738266156239,0.53057518,105390.0,105380.0,0.189779]
[1738266156544,0.53057518,105390.0,105380.0,0.31905021]
[1738266156738,0.46328739,105390.0,105380.0,0.189779]
[1738266157043,0.82408739,105390.0,105380.0,0.215299]
[1738266157541,0.36053618,105390.0,105380.0,0.215299]
[1738266157747,0.72333618,105390.0,105380.0,0.215299]
[1738266158451,0.189779,105380.0,105370.0,0.31083158]
[1738266158743,0.29353021,105380.0,105370.0,0.33635158]
[1738266159444,0.82409339,105390.0,105370.0,0.69715158]
[1738266159745,0.72034218,105390.0,105380.0,0.189779]
[1738266160133,0.82409339,105390.0,105380.0,0.189779]
[1738266160840,0.82509339,105390.0,105380.0,0.189779]
[1738266161147,0.90997895,105390.0,105380.0,0.189779]
[1738266161343,0.63645256,105390.0,105380.0,0.189779]
[1738266162246,0.27765256,105390.0,105380.0,0.189779]
[1738266162437,0.08688556,105390.0,105380.0,0.189779]
[1738266162637,0.08688556,105390.0,105380.0,0.29353021]
[1738266162845,0.08488556,105390.0,105380.0,0.29353021]
[1738266165350,0.08488556,105390.0,105380.0,0.33353021]
[1738266165545,0.08488556,105390.0,105380.0,0.65433021]
[1738266165949,0.08488556,105390.0,105380.0,0.29353021]
[1738266166445,0.08488556,105390.0,105380.0,0.49353021]
[1738266167842,0.63557114,105400.0,105390.0,0.189761]
[1738266168042,0.44582814,105400.0,105390.0,0.44223221]
[1738266168548,0.08502814,105400.0,105390.0,0.44223221]
[1738266169153,0.08802814,105400.0,105390.0,0.44223221]
[1738266169650,0.08802814,105400.0,105390.0,0.58598342]
[1738266169842,0.08802814,105400.0,105390.0,0.48223221]
[1738266170352,0.44882814,105400.0,105390.0,0.48227221]
[1738266170854,0.08802814,105400.0,105390.0,0.48227221]
[1738266171050,0.44882814,105400.0,105390.0,0.58602342]
[1738266171352,0.08802814,105400.0,105390.0,0.44227221]
[1738266171543,0.08702814,105400.0,105390.0,0.44227221]
[1738266171744,0.09202814,105400.0,105390.0,0.44227221]
[1738266172153,0.09902814,105400.0,105390.0,0.44227221]
[1738266174151,0.01414258,105400.0,105390.0,0.41671221]
[1738266174346,0.01414258,105400.0,105390.0,0.90706342]
[1738266176661,0.01414258,105400.0,105390.0,0.91629915]
[1738266182964,0.01014258,105400.0,105390.0,0.91629915]
[1738266183357,0.00314258,105400.0,105390.0,0.91629915]
[1738266184663,0.00314258,105400.0,105390.0,0.84486789]
[1738266195760,0.08488556,105420.0,105410.0,0.189725]
[1738266195966,0.08488556,105420.0,105410.0,0.71247616]
[1738266196163,0.08488556,105420.0,105410.0,0.76814058]
[1738266196868,0.08488556,105420.0,105410.0,0.83617616]
[1738266197671,0.08788556,105420.0,105410.0,0.83617616]
[1738266198365,0.09488556,105420.0,105410.0,0.83617616]
[1738266198770,0.09488556,105420.0,105410.0,1.19697616]
[1738266199469,0.1416096,105430.0,105420.0,0.189707]
[1738266199671,0.1416096,105430.0,105420.0,0.68657816]
[1738266200364,0.00014258,105430.0,105420.0,0.68657816]
[1738266200567,0.00414258,105430.0,105420.0,0.68657816]
[1738266200763,0.00414258,105430.0,105420.0,0.75461374]
[1738266200960,5.8e-07,105430.0,105420.0,0.75461374]
[1738266201362,0.14146702,105440.0,105430.0,0.189689]
[1738266201561,0.14146702,105440.0,105430.0,0.80906016]
[1738266201774,0.14146702,105440.0,105430.0,0.83494016]
[1738266202678,0.14146702,105440.0,105430.0,0.99246734]
[1738266202873,0.15046702,105440.0,105430.0,0.99346734]
[1738266204177,0.15346702,105440.0,105430.0,0.99346734]
[1738266204870,0.15346702,105440.0,105430.0,2.49346734]
[1738266205375,0.15346702,105440.0,105430.0,2.59706568]
[1738266205576,0.012,105440.0,105430.0,2.59706568]
[1738266206369,0.012,105440.0,105430.0,1.09706568]
[1738266206870,0.012,105440.0,105430.0,1.09702568]
[1738266207066,0.011,105440.0,105430.0,1.09702568]
[1738266207971,0.009,105440.0,105430.0,1.09702568]
[1738266208281,0.0827,105460.0,105430.0,0.90733668]
[1738266208576,0.0827,105460.0,105450.0,0.75764968]
[1738266208774,0.0827,105460.0,105450.0,0.78344968]
[1738266209381,0.0827,105460.0,105450.0,0.550453]
[1738266209676,0.0827,105460.0,105450.0,0.69985134]
[1738266210284,0.0847,105460.0,105450.0,0.69985134]
[1738266210672,0.0907,105460.0,105450.0,0.69985134]
[1738266210981,0.0927,105460.0,105450.0,0.69985134]
[1738266211380,0.0957,105460.0,105450.0,0.70085134]
[1738266212373,0.0957,105460.0,105450.0,0.71046188]
[1738266214387,0.0957,105460.0,105450.0,0.71038188]
[1738266219791,0.0957,105460.0,105450.0,0.34958188]
[1738266220087,0.0957,105460.0,105450.0,0.69038188]
[1738266220687,0.0957,105460.0,105450.0,0.66466188]
[1738266220983,0.0957,105460.0,105450.0,0.69026188]
[1738266221382,0.0957,105460.0,105450.0,0.32946188]
[1738266221584,0.0957,105460.0,105450.0,0.30386188]
[1738266221781,0.38893334,105460.0,105450.0,0.001]
[1738266221981,0.189653,105450.0,105440.0,0.00014258]
[1738266222178,0.228453,105450.0,105440.0,0.10374092]
[1738266222379,0.228453,105450.0,105440.0,0.31901192]
[1738266222579,0.228453,105450.0,105440.0,0.35140184]
[1738266222984,0.228453,105450.0,105440.0,0.09373671]
[1738266223286,0.231453,105450.0,105440.0,0.09373671]
[1738266223684,0.240453,105450.0,105440.0,0.09473671]
[1738266224587,0.30844713,105450.0,105440.0,0.00114258]
[1738266224892,0.42131295,105450.0,105440.0,0.00114258]
[1738266226679,0.45696819,105450.0,105440.0,0.00114258]
[1738266227091,0.81776819,105450.0,105440.0,0.00114258]
[1738266228200,0.62811519,105450.0,105420.0,0.1050721]
[1738266228494,0.189689,105430.0,105420.0,0.3203671]
[1738266228693,0.189689,105430.0,105420.0,0.69045202]
[1738266229792,0.192689,105430.0,105420.0,0.69045202]
[1738266230289,0.193689,105430.0,105420.0,0.69045202]
[1738266230786,0.193689,105430.0,105420.0,0.37008492]
[1738266230997,0.235389,105430.0,105420.0,0.37008492]
[1738266231190,0.235389,105430.0,105420.0,0.47373429]
[1738266232095,0.235389,105430.0,105420.0,0.37008492]
[1738266233997,0.235389,105430.0,105420.0,0.00928492]
[1738266234298,0.235389,105430.0,105410.0,0.77691495]
[1738266234491,0.235389,105430.0,105410.0,1.00251495]
[1738266235388,0.234389,105430.0,105410.0,1.00251495]
[1738266236889,0.231389,105430.0,105410.0,1.00251495]
[1738266237794,0.231389,105430.0,105410.0,1.01200452]
[1738266238197,0.231389,105430.0,105410.0,0.62560452]
[1738266238395,0.231389,105430.0,105410.0,0.65112452]
[1738266239102,0.189689,105430.0,105420.0,0.3608]
[1738266239400,0.189689,105430.0,105420.0,0.46444937]
[1738266240608,0.192689,105430.0,105420.0,0.65415637]
[1738266240915,0.193689,105430.0,105420.0,0.65415637]
[1738266244516,0.193689,105430.0,105420.0,0.70415637]
[1738266244706,0.004,105430.0,105420.0,0.70415637]
[1738266245105,0.004,105430.0,105420.0,0.65415637]
[1738266246018,0.004,105430.0,105420.0,0.69415637]
[1738266246419,0.004,105430.0,105420.0,0.65415637]